bitfinex/quotes_SOLUSD_20241214
["timestamp","ask_amount","ask_price","bid_price","bid_amount"]
[1734202905518,6.1667,217.58,217.46,13.95142316]
[1734202906319,6.1667,217.58,217.47,13.95142316]
[1734202906540,6.1667,217.58,217.44,20.0]
[1734202906720,6.1667,217.58,217.46,13.95142316]
[1734202909825,20.0,217.55,217.42,13.95142316]
[1734202910123,20.0,217.55,217.43,30.0]
[1734202912221,20.0,217.55,217.43,43.95142316]
[1734202912425,20.0,217.55,217.43,13.95142316]
[1734202913245,20.0,217.55,217.44,13.95142316]
[1734202913450,20.0,217.55,217.45,13.95142316]
[1734202913626,20.0,217.55,217.46,13.95142316]
[1734202913945,20.0,217.55,217.44,30.12549]
[1734202914150,6.1667,217.58,217.44,0.12549]
[1734202915248,5.1667,217.58,217.44,14.07691316]
[1734202915746,20.0,217.55,217.44,14.07691316]
[1734202915949,5.1667,217.58,217.48,13.95142316]
[1734202916156,5.1667,217.58,217.45,0.68961298]
[1734202916157,5.1667,217.58,217.51,13.95142316]
[1734202917832,5.1667,217.58,217.47,20.12549]
[1734202918037,5.1667,217.58,217.47,0.12549]
[1734202918239,5.1667,217.58,217.47,30.0]
[1734202918955,5.1667,217.58,217.46,0.12549]
[1734202919126,5.1667,217.58,217.46,13.95142316]
[1734202920729,5.1667,217.58,217.45,14.07691316]
[1734202920930,20.0,217.55,217.37,134.7]
[1734202921127,23.776884,217.53,217.41,13.95142316]
[1734202921855,23.776884,217.53,217.42,13.95142316]
[1734202923148,23.776884,217.53,217.43,13.95142316]
[1734202924077,20.0,217.55,217.43,13.95142316]
[1734202924384,20.0,217.55,217.46,13.95142316]
[1734202924960,20.0,217.55,217.47,13.95142316]
[1734202925161,20.0,217.55,217.43,0.12549]
[1734202925479,20.0,217.55,217.44,13.95142316]
[1734202925956,20.0,217.55,217.45,13.95142316]
[1734202926154,20.0,217.55,217.46,13.95142316]
[1734202927252,20.0,217.55,217.45,13.95142316]
[1734202927759,20.0,217.55,217.47,13.95142316]
[1734202927970,5.1667,217.58,217.47,13.95142316]
[1734202930556,5.1667,217.58,217.49,13.95142316]
[1734202931275,5.1667,217.58,217.43,20.12549]
[1734202931470,20.0,217.55,217.44,43.95142316]
[1734202931671,20.0,217.55,217.44,13.95142316]
[1734202931985,20.0,217.55,217.45,13.95142316]
[1734202934362,20.0,217.55,217.46,13.95142316]
[1734202934563,20.0,217.55,217.47,13.95142316]
[1734202934778,20.0,217.55,217.46,13.95142316]
[1734202935481,20.0,217.55,217.41,24.7175027]
[1734202935684,20.0,217.55,217.45,13.95142316]
[1734202935883,20.0,217.55,217.46,13.95142316]
[1734202936695,20.0,217.55,217.47,13.95142316]
[1734202936898,5.1667,217.58,217.47,13.95142316]
[1734202937461,5.1667,217.58,217.46,13.95142316]
[1734202939196,5.1667,217.58,217.47,13.95142316]
[1734202940574,20.0,217.54,217.4,0.68954864]
[1734202940776,20.0,217.54,217.41,13.95142316]
[1734202941679,20.0,217.54,217.4,13.95142316]
[1734202941903,20.0,217.54,217.41,13.95142316]
[1734202942496,20.0,217.5,217.39,30.0]
[1734202943216,20.0,217.5,217.39,43.95142316]
[1734202943874,20.0,217.5,217.39,13.95142316]
[1734202946221,20.0,217.5,217.41,13.95142316]
[1734202946431,6.9889,217.53,217.41,13.95142316]
[1734202946804,6.9889,217.53,217.43,13.95142316]
[1734202947133,6.9889,217.53,217.45,13.95142316]
[1734202947732,6.9889,217.58,217.41,158.476884]
[1734202947912,6.9889,217.58,217.44,13.95142316]
[1734202948801,6.9889,217.58,217.45,13.95142316]
[1734202948995,6.9889,217.58,217.47,13.95142316]
[1734202949197,6.9889,217.58,217.46,14.07691316]
[1734202950926,6.9889,217.58,217.45,0.12549]
[1734202951141,6.9889,217.58,217.45,14.07691316]
[1734202951498,6.9889,217.58,217.47,13.95142316]
[1734202951907,6.9889,217.58,217.45,13.95142316]
[1734202952207,6.9889,217.58,217.46,0.12549]
[1734202952980,6.9889,217.58,217.48,13.95142316]
[1734202953188,6.072,217.62,217.52,13.95142316]
[1734202953482,6.072,217.62,217.53,14.64078576]
[1734202953981,6.072,217.62,217.56,13.95142316]
[1734202954143,6.7331,217.68,217.58,13.95142316]
[1734202954771,6.7331,217.68,217.57,13.95142316]
[1734202954960,6.7331,217.68,217.56,0.12549]
[1734202955160,6.7331,217.68,217.56,14.07691316]
[1734202955643,6.7331,217.68,217.61,13.95142316]
[1734202955966,6.7331,217.73,217.62,13.95142316]
[1734202956683,6.7331,217.73,217.63,14.07691316]
[1734202957151,6.7331,217.73,217.56,134.7]
[1734202957356,6.7331,217.73,217.6,0.12549]
[1734202957780,6.7331,217.73,217.6,30.12549]
[1734202958086,6.7331,217.73,217.6,44.07691316]
[1734202958480,6.7331,217.73,217.61,13.95142316]
[1734202959753,6.7331,217.73,217.6,0.12549]
[1734202959754,6.7331,217.73,217.65,14.07691316]
[1734202960253,6.7331,217.73,217.6,134.7]
[1734202960474,6.7331,217.73,217.6,148.65142316]
[1734202960666,6.7331,217.73,217.61,0.12549]
[1734202961577,6.7331,217.73,217.6,148.65142316]
[1734202962380,6.7331,217.73,217.61,14.07691316]
[1734202962960,6.7331,217.73,217.61,0.12549]
[1734202963162,6.7331,217.73,217.62,13.95142316]
[1734202963383,6.7331,217.73,217.59,24.027864]
[1734202963679,6.7331,217.73,217.61,0.12549]
[1734202963883,6.7331,217.73,217.61,14.07691316]
[1734202964580,6.7331,217.73,217.64,13.95142316]
[1734202964765,20.0,217.76,217.65,14.07691316]
[1734202965369,20.0,217.76,217.65,0.12549]
[1734202965567,20.0,217.76,217.63,0.25098]
[1734202965783,20.0,217.76,217.62,20.0]
[1734202965989,20.0,217.76,217.6,0.12549]
[1734202966286,20.0,217.72,217.6,0.12549]
[1734202966656,20.0,217.72,217.6,14.07691316]
[1734202966874,20.0,217.72,217.61,13.95142316]
[1734202967474,20.0,217.76,217.62,0.12549]
[1734202968493,20.0,217.72,217.61,0.12549]
[1734202968662,20.0,217.72,217.57,13.95142316]
[1734202968863,20.0,217.72,217.56,13.95142316]
[1734202968864,23.776884,217.71,217.56,13.95142316]
[1734202969280,23.776884,217.71,217.57,13.95142316]
[1734202970080,20.0,217.72,217.63,13.95142316]
[1734202970390,7.2159,217.75,217.64,14.64044978]
[1734202970589,7.2159,217.75,217.65,13.95142316]
[1734202971288,7.2159,217.75,217.65,0.12549]
[1734202971696,7.2159,217.75,217.63,0.12549]
[1734202972272,20.0,217.72,217.59,148.65142316]
[1734202972473,20.0,217.72,217.6,30.0]
[1734202972672,20.0,217.72,217.56,13.95142316]
[1734202972673,23.776884,217.71,217.56,13.95142316]
[1734202973777,23.776884,217.71,217.57,13.95142316]
[1734202974209,20.0,217.72,217.59,13.95142316]
[1734202974688,20.0,217.72,217.6,0.12549]
[1734202974890,20.0,217.72,217.6,13.95142316]
[1734202975415,20.0,217.72,217.61,0.12549]
[1734202975786,23.776884,217.71,217.57,13.95142316]
[1734202977595,20.0,217.72,217.6,13.95142316]
[1734202978277,20.0,217.72,217.61,0.12549]
[1734202978794,20.0,217.72,217.56,0.12549]
[1734202978976,20.0,217.72,217.57,13.95142316]
[1734202979176,20.0,217.72,217.58,0.12549]
[1734202979381,20.0,217.72,217.58,14.07691316]
[1734202979976,20.0,217.72,217.59,13.95142316]
[1734202980400,20.0,217.72,217.57,0.12549]
[1734202980790,23.776884,217.71,217.57,0.12549]
[1734202980995,6.4641,217.67,217.56,0.12549]
[1734202981293,6.4641,217.67,217.56,14.07691316]
[1734202981689,20.0,217.64,217.53,14.64064744]
[1734202982004,20.0,217.64,217.49,13.95142316]
[1734202982225,20.0,217.64,217.5,0.6894424]
[1734202983689,20.0,217.64,217.5,14.64086556]
[1734202984479,20.0,217.64,217.51,13.95142316]
[1734202985597,20.0,217.64,217.54,13.95142316]
[1734202985985,20.0,217.64,217.52,14.64084474]
[1734202987499,20.0,217.64,217.54,13.95142316]
[1734202987708,20.0,217.64,217.53,14.7662407]
[1734202987886,20.0,217.64,217.53,14.07691316]
[1734202988092,20.0,217.64,217.5,0.68932688]
[1734202988389,20.0,217.64,217.51,43.95142316]
[1734202988589,20.0,217.64,217.51,13.95142316]
[1734202990398,20.0,217.64,217.52,13.95142316]
[1734202991310,6.4641,217.63,217.5,14.64075004]
[1734202991489,20.0,217.6,217.5,14.64075004]
[1734202992395,0.6611,217.59,217.48,13.95142316]
[1734202992994,0.6611,217.59,217.49,13.95142316]
[1734202993190,7.1252,217.7,217.58,13.95142316]
[1734202993597,7.1252,217.7,217.56,13.95142316]
[1734202993912,7.1252,217.7,217.48,23.776884]
[1734202993913,0.12549,217.69,217.48,23.776884]
[1734202994204,0.12549,217.69,217.47,15.48822316]
[1734202994205,0.12549,217.67,217.47,1.5368]
[1734202994511,23.902374,217.67,217.47,15.48822316]
[1734202994685,20.0,217.6,217.47,15.48822316]
[1734202994879,20.0,217.6,217.48,13.95142316]
[1734202995286,7.1252,217.59,217.47,44.027864]
[1734202995494,7.1252,217.59,217.47,0.12549]
[1734202995804,7.1252,217.59,217.47,30.12549]
[1734202996888,7.1252,217.59,217.47,0.12549]
[1734202997700,7.1252,217.59,217.45,8.92597856]
[1734202997897,7.1252,217.59,217.45,0.12549]
[1734202998091,7.1252,217.59,217.43,0.68953464]
[1734202998092,20.0,217.56,217.43,0.68953464]
[1734202998306,20.0,217.56,217.42,10.0]
[1734202998490,20.0,217.52,217.42,10.0]
[1734202998695,7.1252,217.51,217.42,10.0]
[1734203000187,20.0,217.48,217.42,10.0]
[1734203003806,7.1252,217.51,217.42,10.0]
[1734203003807,21.081731,217.51,217.42,10.0]
[1734203004010,7.1252,217.51,217.43,14.20751107]
[1734203004213,6.8964,217.56,217.46,13.95653107]
[1734203004411,6.8964,217.56,217.47,13.95653107]
[1734203004712,6.8964,217.56,217.48,14.08202107]
[1734203005021,13.956531,217.57,217.49,13.95653107]
[1734203005231,6.2353,217.61,217.48,0.12549]
[1734203005232,6.2353,217.61,217.5,13.95653107]
[1734203005604,6.2353,217.61,217.5,0.12549]
[1734203006416,6.2353,217.61,217.48,13.95653107]
[1734203006616,6.2353,217.61,217.49,0.12549]
[1734203006915,6.2353,217.61,217.49,13.95653107]
[1734203007124,6.2353,217.61,217.5,0.12549]
[1734203008718,6.2353,217.61,217.49,0.12549]
[1734203009019,6.2353,217.61,217.53,13.95653107]
[1734203009216,6.2353,217.61,217.54,13.95653107]
[1734203009403,6.2353,217.61,217.55,0.12549]
[1734203011107,0.6611,217.62,217.55,0.12549]
[1734203011804,0.6611,217.62,217.54,24.027864]
[1734203012323,0.6611,217.62,217.54,0.25098]
[1734203012704,0.6611,217.62,217.54,24.027864]
[1734203013098,6.2353,217.66,217.54,14.20751107]
[1734203013304,6.2353,217.66,217.57,0.12549]
[1734203013901,6.2353,217.66,217.53,0.12549]
[1734203014101,6.2353,217.66,217.54,23.902374]
[1734203014504,6.2353,217.66,217.55,37.85890507]
[1734203014702,6.2353,217.66,217.56,0.12549]
[1734203014901,6.2353,217.66,217.56,14.08202107]
[1734203016598,6.2353,217.66,217.56,0.12549]
[1734203016803,6.2353,217.66,217.53,0.12549]
[1734203017105,20.0,217.63,217.51,164.7]
[1734203018308,20.0,217.63,217.51,134.7]
[1734203019338,20.0,217.63,217.51,0.12549]
[1734203019703,20.0,217.63,217.51,14.08202107]
[1734203020113,20.0,217.63,217.5,0.12549]
[1734203020637,20.0,217.63,217.5,14.08202107]
[1734203020804,20.0,217.63,217.51,13.95653107]
[1734203021006,20.0,217.63,217.5,0.12549]
[1734203021343,0.6611,217.62,217.51,0.12549]
[1734203022764,0.6611,217.62,217.53,37.98439507]
[1734203022906,0.6611,217.62,217.55,0.12549]
[1734203025132,6.2353,217.66,217.55,0.12549]
[1734203025133,6.2353,217.66,217.57,13.95653107]
[1734203025636,6.2353,217.66,217.56,14.08202107]
[1734203025839,6.2353,217.66,217.55,14.20751107]
[1734203026958,6.2353,217.66,217.56,13.95653107]
[1734203027360,6.2353,217.66,217.55,14.20751107]
[1734203028342,6.2353,217.66,217.57,14.20751107]
[1734203028546,6.2353,217.66,217.57,14.08202107]
[1734203028749,6.2353,217.66,217.59,0.12549]
[1734203028938,0.6611,217.68,217.59,0.12549]
[1734203029139,0.6611,217.68,217.6,0.12549]
[1734203029744,0.6611,217.68,217.59,0.12549]
[1734203029745,0.6611,217.68,217.59,0.25098]
[1734203033549,0.6611,217.68,217.56,13.95653107]
[1734203033752,0.6611,217.68,217.57,30.0]
[1734203034147,20.6611,217.68,217.57,30.0]
[1734203034339,20.6611,217.68,217.52,13.95653107]
[1734203034947,20.6611,217.68,217.53,0.12549]
[1734203035149,20.6611,217.68,217.52,13.95653107]
[1734203035756,20.6611,217.68,217.53,0.25098]
[1734203037564,20.6611,217.68,217.54,13.95653107]
[1734203037863,20.6611,217.68,217.53,0.12549]
[1734203038047,20.6611,217.68,217.53,0.25098]
[1734203038945,20.6611,217.68,217.53,13.95653107]
[1734203041658,6.0638,217.67,217.53,13.95653107]
[1734203042267,20.0,217.64,217.53,13.95653107]
[1734203043267,20.0,217.64,217.54,32.949169]
[1734203043474,20.0,217.64,217.55,8.921305]
[1734203043667,6.0638,217.67,217.55,8.921305]
[1734203044054,6.0638,217.67,217.57,0.12549]
[1734203044250,6.0638,217.67,217.57,9.046795]
[1734203044769,6.0638,217.67,217.57,0.12549]
[1734203044986,6.0638,217.67,217.56,0.12549]
[1734203045187,6.0638,217.67,217.51,23.776884]
[1734203045348,6.0638,217.67,217.49,1.6321]
[1734203045552,20.0,217.64,217.5,30.0]
[1734203045777,19.4209,217.64,217.51,0.12549]
[1734203045963,19.4209,217.64,217.5,30.0]
[1734203046158,19.4209,217.64,217.5,0.12549]
[1734203046462,19.4209,217.64,217.51,8.921305]
[1734203047263,19.4209,217.64,217.51,13.94126429]
[1734203047872,19.4209,217.64,217.5,24.027864]
[1734203048180,6.7249,217.63,217.51,23.776884]
[1734203050088,6.7249,217.63,217.51,0.12549]
[1734203050303,6.7249,217.63,217.51,14.06675429]
[1734203050984,6.7249,217.63,217.5,14.06675429]
[1734203051165,6.7249,217.63,217.51,0.12549]
[1734203051365,20.0,217.6,217.44,1.6623]
[1734203051598,20.0,217.6,217.45,43.94126429]
[1734203052097,20.0,217.56,217.45,30.0]
[1734203052692,20.0,217.56,217.46,14.06675429]
[1734203052873,20.0,217.56,217.47,30.0]
[1734203053278,20.0,217.56,217.46,14.06675429]
[1734203053595,20.0,217.56,217.46,0.25098]
[1734203054781,20.0,217.56,217.46,14.06675429]
[1734203055487,20.0,217.56,217.46,0.12549]
[1734203055679,20.0,217.55,217.44,13.94126429]
[1734203057072,20.0,217.55,217.47,13.94126429]
[1734203057275,14.602365,217.58,217.49,13.94126429]
[1734203057483,0.6611,217.58,217.51,13.94126429]
[1734203058069,0.6611,217.58,217.52,13.94126429]
[1734203058291,0.6611,217.58,217.48,0.81495538]
[1734203058482,0.6611,217.58,217.5,13.94126429]
[1734203058979,0.6611,217.58,217.51,13.94126429]
[1734203059374,0.6611,217.63,217.56,13.94126429]
[1734203059676,0.6611,217.63,217.57,13.94126429]
[1734203059900,0.6611,217.63,217.54,0.68929744]
[1734203059901,0.6611,217.63,217.56,13.94126429]
[1734203060799,0.6611,217.63,217.56,0.12549]
[1734203061101,0.6611,217.63,217.56,0.25098]
[1734203061586,0.6611,217.63,217.56,0.12549]
[1734203061794,0.6611,217.63,217.52,13.94126429]
[1734203062374,0.6611,217.63,217.49,0.68927331]
[1734203062375,0.6611,217.63,217.53,14.06675429]
[1734203063196,0.6611,217.63,217.54,13.94126429]
[1734203065201,0.6611,217.63,217.53,14.19224429]
[1734203065372,0.6611,217.63,217.53,0.25098]
[1734203067379,0.6611,217.63,217.53,14.06675429]
[1734203067893,0.6611,217.63,217.54,0.12549]
[1734203068102,0.6611,217.63,217.56,13.94126429]
[1734203069488,0.6611,217.69,217.59,14.06675429]
[1734203069797,0.6611,217.69,217.59,13.94126429]
[1734203070677,6.2496,217.71,217.62,14.06675429]
[1734203070877,6.2496,217.71,217.6,24.59150978]
[1734203070878,0.6611,217.74,217.66,14.06675429]
[1734203071098,0.6611,217.74,217.67,14.19224429]
[1734203071303,0.6611,217.74,217.67,0.25098]
[1734203077005,0.6611,217.74,217.63,13.94126429]
[1734203077207,20.0,217.73,217.61,13.94126429]
[1734203077397,20.0,217.73,217.58,13.94126429]
[1734203077707,20.0,217.73,217.59,30.0]
[1734203077891,20.0,217.73,217.59,14.06675429]
[1734203078091,20.0,217.73,217.64,14.06675429]
[1734203078812,20.0,217.73,217.65,0.12549]
[1734203080090,20.0,217.73,217.64,0.25098]
[1734203081302,20.0,217.73,217.64,0.12549]
[1734203081792,20.0,217.73,217.63,0.25098]
[1734203082511,20.0,217.73,217.63,9.16429694]
[1734203082693,0.6611,217.74,217.63,9.16429694]
[1734203084013,0.6611,217.74,217.63,0.25098]
[1734203084215,0.6611,217.74,217.63,9.16429694]
[1734203085810,0.6611,217.74,217.65,0.25098]
[1734203086615,0.6611,217.74,217.67,0.12549]
[1734203086911,0.6611,217.8,217.7,9.16429694]
[1734203087094,0.6611,217.8,217.71,8.91331694]
[1734203087291,0.6611,217.8,217.7,9.85305573]
[1734203088095,10.42023886,217.88,217.73,29.03880694]
[1734203088298,6.7899,217.94,217.78,0.12549]
[1734203088612,6.7899,217.94,217.78,0.25098]
[1734203088991,8.59677456,217.94,217.78,0.25098]
[1734203089193,8.59677456,217.94,217.78,0.12549]
[1734203089514,20.0,217.91,217.77,13.90842987]
[1734203089821,20.0,217.91,217.77,0.25098]
[1734203090413,20.0,217.91,217.78,0.12549]
[1734203090713,20.0,217.91,217.77,0.12549]
[1734203090914,20.0,217.91,217.76,0.12549]
[1734203091098,20.0,217.91,217.75,0.12549]
[1734203091293,6.7899,217.9,217.74,30.12549]
[1734203091709,20.0,217.86,217.74,30.12549]
[1734203092012,20.0,217.86,217.74,0.25098]
[1734203092205,20.0,217.86,217.74,0.12549]
[1734203092720,20.0,217.86,217.76,0.12549]
[1734203092924,20.0,217.87,217.78,13.90842987]
[1734203093137,6.7899,217.9,217.78,13.90842987]
[1734203093299,6.7899,217.9,217.78,0.12549]
[1734203093500,6.7899,217.9,217.76,13.90842987]
[1734203093800,6.7899,217.9,217.77,0.12549]
[1734203094000,6.7899,217.9,217.77,14.15940987]
[1734203094597,20.0,217.87,217.77,14.15940987]
[1734203095006,6.7899,217.9,217.81,13.90842987]
[1734203095196,6.7899,217.9,217.82,13.90842987]
[1734203095426,6.7899,217.9,217.8,13.90842987]
[1734203095799,6.7899,217.9,217.81,13.90842987]
[1734203096320,6.7899,217.9,217.83,13.90842987]
[1734203096525,6.7899,217.9,217.84,13.90842987]
[1734203096741,6.7899,217.95,217.87,13.90842987]
[1734203099098,6.7899,217.95,217.88,13.90842987]
[1734203099302,6.7899,217.95,217.87,13.90842987]
[1734203101201,6.7899,217.95,217.88,14.15940987]
[1734203101512,6.1288,217.95,217.89,13.90842987]
[1734203102408,6.8425,218.0,217.89,13.90842987]
[1734203102612,20.0,217.97,217.89,13.90842987]
[1734203103611,20.0,217.97,217.9,13.90842987]
[1734203103817,20.0,217.97,217.91,13.90842987]
[1734203104126,20.0,217.97,217.9,13.90842987]
[1734203104704,20.0,217.97,217.88,0.25098]
[1734203104927,20.0,217.97,217.87,13.90842987]
[1734203105227,20.0,217.97,217.84,13.90842987]
[1734203105403,20.0,217.97,217.77,0.68838871]
[1734203105610,20.0,217.93,217.77,134.7]
[1734203105922,20.0,217.93,217.78,0.12549]
[1734203106119,20.0,217.93,217.81,13.90842987]
[1734203106305,20.0,217.93,217.8,13.90842987]
[1734203106700,20.0,217.93,217.81,0.12549]
[1734203106943,20.0,217.93,217.81,0.25098]
[1734203107439,20.0,217.93,217.81,0.12549]
[1734203107625,20.0,217.93,217.82,0.25098]
[1734203108637,20.0,217.93,217.81,13.90842987]
[1734203108638,6.8425,217.92,217.81,13.90842987]
[1734203108931,6.8425,217.92,217.77,13.90842987]
[1734203109102,6.8425,217.92,217.74,13.90842987]
[1734203109103,20.0,217.88,217.74,13.90842987]
[1734203109443,20.0,217.88,217.77,30.0]
[1734203110301,20.0,217.88,217.75,30.0]
[1734203110914,20.0,217.84,217.72,13.90842987]
[1734203111720,20.0,217.84,217.73,13.90842987]
[1734203112429,20.0,217.84,217.74,13.90842987]
[1734203113121,20.0,217.84,217.71,13.90842987]
[1734203113426,20.0,217.84,217.69,14.03391987]
[1734203113630,20.0,217.84,217.68,43.90842987]
[1734203114125,20.0,217.84,217.69,14.03391987]
[1734203114299,6.8425,217.79,217.67,13.90842987]
[1734203114901,6.8425,217.79,217.68,14.03391987]
[1734203115101,6.8425,217.79,217.6,0.6889388]
[1734203115102,6.8425,217.79,217.67,13.90842987]
[1734203115332,20.0,217.76,217.67,13.90842987]
[1734203117706,20.0,217.76,217.68,13.90842987]
[1734203117907,6.8425,217.79,217.74,13.90842987]
[1734203118112,6.8425,217.84,217.74,13.90842987]
[1734203119223,20.0,217.81,217.73,13.90842987]
[1734203119424,20.0,217.81,217.72,13.90842987]
[1734203119600,20.0,217.81,217.69,13.90842987]
[1734203119804,20.0,217.81,217.68,13.90842987]
[1734203120307,20.0,217.8,217.67,13.90842987]
[1734203120731,20.0,217.8,217.68,13.90842987]
[1734203121024,20.0,217.8,217.69,13.90842987]
[1734203122321,20.0,217.8,217.7,13.90842987]
[1734203122627,20.0,217.81,217.7,13.90842987]
[1734203122839,20.0,217.8,217.71,13.90842987]
[1734203123010,6.8425,217.84,217.74,13.90842987]
[1734203123209,6.8425,217.84,217.73,13.90842987]
[1734203123410,6.8425,217.84,217.72,13.90842987]
[1734203124726,20.0,217.81,217.72,13.90842987]
[1734203125113,20.0,217.81,217.73,0.25098]
[1734203125921,6.8425,217.84,217.75,0.12549]
[1734203126129,6.8425,217.84,217.77,13.90842987]
[1734203126320,6.8425,217.84,217.78,13.90842987]
[1734203126522,6.8425,217.84,217.77,13.90842987]
[1734203126709,6.1151,217.89,217.79,13.90842987]
[1734203126908,6.1151,217.89,217.78,0.12549]
[1734203126909,6.1151,217.89,217.81,13.90842987]
[1734203128223,20.0,217.92,217.82,13.90842987]
[1734203128628,6.1151,217.95,217.82,14.15940987]
[1734203128831,6.1151,217.95,217.83,13.90842987]
[1734203130728,20.0,217.92,217.83,13.90842987]
[1734203130925,6.1151,217.95,217.86,13.90842987]
[1734203131147,6.1151,217.95,217.87,13.90842987]
[1734203131938,6.1151,217.95,217.86,14.15940987]
[1734203133238,6.1151,217.95,217.87,13.90842987]
[1734203133815,6.1151,217.95,217.88,13.90842987]
[1734203134025,0.6611,217.96,217.88,13.90842987]
[1734203135042,0.6611,217.96,217.86,0.93923467]
[1734203135043,0.6611,217.96,217.89,13.90842987]
[1734203135355,20.0,217.97,217.9,14.03391987]
[1734203135513,20.0,217.97,217.9,0.12549]
[1734203135720,20.0,217.97,217.9,0.25098]
[1734203136023,20.0,217.97,217.9,0.12549]
[1734203136221,20.0,217.97,217.89,0.12549]
[1734203136525,20.0,217.97,217.86,13.90842987]
[1734203136729,20.0,217.97,217.87,0.25098]
[1734203136931,20.0,217.97,217.8,1.6354]
[1734203137149,20.0,217.97,217.81,13.90842987]
[1734203137942,23.776884,217.96,217.82,30.0]
[1734203138253,6.152,217.91,217.75,1.6089]
[1734203138432,20.0,217.88,217.69,1.6089]
[1734203138637,20.0,217.88,217.74,13.90842987]
[1734203138833,20.0,217.88,217.73,13.90842987]
[1734203139246,20.0,217.88,217.73,0.12549]
[1734203139427,20.0,217.88,217.73,30.12549]
[1734203139628,20.0,217.88,217.73,30.0]
[1734203139830,20.0,217.88,217.73,0.12549]
[1734203140271,20.0,217.88,217.73,0.25098]
[1734203141855,21.80110172,217.88,217.73,0.25098]
[1734203142735,21.80110172,217.88,217.73,0.12549]
[1734203142933,21.80110172,217.88,217.72,13.90842987]
[1734203143128,21.80110172,217.88,217.73,0.25098]
[1734203143741,20.0,217.84,217.73,0.25098]
[1734203143936,20.0,217.84,217.74,13.90842987]
[1734203144129,23.776884,217.9,217.73,13.90842987]
[1734203144345,13.90843,217.88,217.74,0.12549]
[1734203144857,13.90843,217.88,217.72,13.90842987]
[1734203145032,13.90843,217.88,217.71,0.12549]
[1734203145356,20.0,217.85,217.69,13.90842987]
[1734203145653,0.12549,217.87,217.67,13.90842987]
[1734203145654,20.0,217.81,217.67,13.90842987]
[1734203145870,20.0,217.81,217.68,30.0]
[1734203146041,20.0,217.81,217.68,0.12549]
[1734203146558,20.0,217.81,217.66,13.90842987]
[1734203146743,20.0,217.81,217.68,0.12549]
[1734203146947,20.0,217.81,217.68,0.25098]
[1734203147156,20.0,217.81,217.68,14.15940987]
[1734203148838,20.0,217.81,217.68,0.25098]
[1734203154238,20.0,217.81,217.66,13.90842987]
[1734203154444,20.0,217.81,217.66,0.12549]
[1734203154664,20.0,217.81,217.68,13.90842987]
[1734203154834,20.0,217.81,217.7,13.90842987]
[1734203155042,20.0,217.81,217.67,0.12549]
[1734203155043,20.0,217.81,217.68,13.90842987]
[1734203155584,20.0,217.81,217.69,13.90842987]
[1734203156080,20.0,217.81,217.68,13.90842987]
[1734203156981,23.776884,217.8,217.66,43.90842987]
[1734203157147,20.0,217.77,217.65,13.90842987]
[1734203157341,6.9488,217.76,217.63,13.90842987]
[1734203157650,6.9488,217.76,217.64,30.0]
[1734203158187,6.9488,217.76,217.64,43.90842987]
[1734203158546,6.9488,217.76,217.64,13.90842987]
[1734203159083,6.9488,217.76,217.65,0.12549]
[1734203160574,6.9488,217.76,217.64,0.12549]
[1734203161089,6.9488,217.76,217.64,14.03391987]
[1734203162581,6.9488,217.76,217.63,13.90842987]
[1734203162779,6.9488,217.76,217.62,13.90842987]
[1734203163272,6.9488,217.76,217.63,0.12549]
[1734203163673,6.9488,217.76,217.63,14.03391987]
[1734203163883,6.9488,217.76,217.64,13.90842987]
[1734203165689,20.0,217.73,217.63,13.90842987]
[1734203166092,20.0,217.73,217.56,134.7]